[Event "Chessable Masters - Torneo preliminare"]
[White "Fressinet, Laurent"]
[Black "Tregubov, Pavel V."]
[WhiteFideId "608742"]
[BlackFideId "4115341"]
[WhiteElo "2689"]
[BlackElo "2522"]
[Result "1-0"]
[Round "9"]
[TimeControl "600+2"]
[Date "2023.03.13"]
[WhiteClock "0:00:22"]
[BlackClock "0:00:08"]

1. d4 {[%clk 0:09:40]}  Nf6 {[%clk 0:10:00]} 2. Nf3 {[%clk 0:09:36]}  e6 {[%clk 0:09:59]} 3. Bg5 {[%clk 0:09:35]}  c5 {[%clk 0:09:57]} 4. e3 {[%clk 0:09:34]}  d5 {[%clk 0:09:54]} 5. Nbd2 {[%clk 0:09:33]}  Be7 {[%clk 0:09:46]} 6. c3 {[%clk 0:09:33]}  b6 {[%clk 0:09:42]} 7. Bb5+ {[%clk 0:09:29]}  Bd7 {[%clk 0:09:21]} 8. Bd3 {[%clk 0:09:29]}  Nc6 {[%clk 0:09:10]} 9. Ne5 {[%clk 0:09:15]}  Nxe5 {[%clk 0:07:33]} 10. dxe5 {[%clk 0:09:14]}  Ng8 {[%clk 0:07:34]} 11. Bf4 {[%clk 0:09:05]}  g5 {[%clk 0:07:35]} 12. Bg3 {[%clk 0:09:05]}  h5 {[%clk 0:07:37]} 13. h3 {[%clk 0:09:01]}  h4 {[%clk 0:07:12]} 14. Bh2 {[%clk 0:09:01]}  Qc7 {[%clk 0:07:03]} 15. e4 {[%clk 0:08:29]}  Bc6 {[%clk 0:06:34]} 16. exd5 {[%clk 0:07:57]}  Bxd5 {[%clk 0:06:35]} 17. Qa4+ {[%clk 0:07:37]}  Bc6 {[%clk 0:06:21]} 18. Bb5 {[%clk 0:07:35]}  Bxb5 {[%clk 0:06:20]} 19. Qxb5+ {[%clk 0:07:36]}  Qd7 {[%clk 0:06:22]} 20. a4 {[%clk 0:07:17]}  Nh6 {[%clk 0:05:46]} 21. Nc4 {[%clk 0:06:54]}  Nf5 {[%clk 0:05:40]} 22. Rd1 {[%clk 0:06:04]}  Qxb5 {[%clk 0:05:37]} 23. axb5 {[%clk 0:06:05]}  O-O {[%clk 0:05:21]} 24. Ke2 {[%clk 0:05:01]}  Rfd8 {[%clk 0:05:22]} 25. Ra1 {[%clk 0:04:52]}  Rdb8 {[%clk 0:03:26]} 26. Ra6 {[%clk 0:04:34]}  Rb7 {[%clk 0:03:28]} 27. Rha1 {[%clk 0:04:34]}  Bd8 {[%clk 0:03:29]} 28. Rd1 {[%clk 0:03:59]}  Kf8 {[%clk 0:03:00]} 29. Kf3 {[%clk 0:03:43]}  Ke8 {[%clk 0:02:51]} 30. Ke4 {[%clk 0:03:20]}  Rc8 {[%clk 0:02:49]} 31. g4 {[%clk 0:03:15]}  hxg3 {[%clk 0:02:49]} 32. fxg3 {[%clk 0:03:16]}  Bc7 {[%clk 0:02:30]} 33. g4 {[%clk 0:03:16]}  Ne7 {[%clk 0:02:30]} 34. Bg1 {[%clk 0:03:11]}  Nd5 {[%clk 0:02:15]} 35. Be3 {[%clk 0:02:58]}  Nxe3 {[%clk 0:02:07]} 36. Kxe3 {[%clk 0:03:00]}  Bb8 {[%clk 0:02:07]} 37. Ke4 {[%clk 0:02:44]}  Rd7 {[%clk 0:02:00]} 38. Rxd7 {[%clk 0:02:26]}  Kxd7 {[%clk 0:02:00]} 39. Ra1 {[%clk 0:02:27]}  Rh8 {[%clk 0:01:53]} 40. Rd1+ {[%clk 0:02:26]}  Ke7 {[%clk 0:01:53]} 41. Rd3 {[%clk 0:02:28]}  Rh6 {[%clk 0:01:33]} 42. Rf3 {[%clk 0:02:07]}  Rh8 {[%clk 0:01:29]} 43. Re3 {[%clk 0:01:35]}  Bc7 {[%clk 0:01:28]} 44. Rd3 {[%clk 0:01:13]}  Rh6 {[%clk 0:01:02]} 45. Nd2 {[%clk 0:01:07]}  f5+ {[%clk 0:00:49]} 46. exf6+ {[%clk 0:01:06]}  Rxf6 {[%clk 0:00:50]} 47. Nf3 {[%clk 0:01:07]}  Bf4 {[%clk 0:00:36]} 48. Rd1 {[%clk 0:00:54]}  Rf8 {[%clk 0:00:36]} 49. Ra1 {[%clk 0:00:48]}  Bb8 {[%clk 0:00:27]} 50. Nxg5 {[%clk 0:00:46]}  Rf2 {[%clk 0:00:26]} 51. b4 {[%clk 0:00:40]}  cxb4 {[%clk 0:00:24]} 52. cxb4 {[%clk 0:00:42]}  Rb2 {[%clk 0:00:25]} 53. Ra4 {[%clk 0:00:42]}  Re2+ {[%clk 0:00:17]} 54. Kd3 {[%clk 0:00:37]}  Rh2 {[%clk 0:00:17]} 55. Ke3 {[%clk 0:00:36]}  Kf6 {[%clk 0:00:15]} 56. Ne4+ {[%clk 0:00:32]}  Ke5 {[%clk 0:00:16]} 57. Nf2 {[%clk 0:00:32]}  Kd5 {[%clk 0:00:14]} 58. Kf3 {[%clk 0:00:30]}  Kc4 {[%clk 0:00:15]} 59. g5 {[%clk 0:00:27]}  Kxb5 {[%clk 0:00:13]} 60. Ra2 {[%clk 0:00:28]}  Be5 {[%clk 0:00:07]} 61. g6 {[%clk 0:00:22]}  Kxb4 {[%clk 0:00:08]} 62. Nd3+ {[%clk 0:00:22]} 1-0


[Site "Internet"]

[Event "Chessable Masters - Torneo preliminare"]
[White "Pap, Gyula"]
[Black "Kevlishvili, Robby"]
[WhiteFideId "725323"]
[BlackFideId "1040634"]
[WhiteElo "2563"]
[BlackElo "2577"]
[Result "0-1"]
[Round "9"]
[TimeControl "600+2"]
[Date "2023.03.13"]
[WhiteClock "0:00:03"]
[BlackClock "0:07:22"]

1. d4 {[%clk 0:10:01]}  d5 {[%clk 0:10:00]} 2. c3 {[%clk 0:10:00]}  Nf6 {[%clk 0:10:01]} 3. Nf3 {[%clk 0:09:56]}  c6 {[%clk 0:09:53]} 4. Bg5 {[%clk 0:09:44]}  Bf5 {[%clk 0:09:53]} 5. Bxf6 {[%clk 0:09:34]}  gxf6 {[%clk 0:09:55]} 6. Nbd2 {[%clk 0:09:32]}  Nd7 {[%clk 0:09:55]} 7. Nh4 {[%clk 0:09:27]}  Bg6 {[%clk 0:09:55]} 8. e3 {[%clk 0:09:19]}  e6 {[%clk 0:09:56]} 9. Be2 {[%clk 0:09:01]}  Bd6 {[%clk 0:09:55]} 10. O-O {[%clk 0:08:54]}  Qe7 {[%clk 0:09:53]} 11. f4 {[%clk 0:08:00]}  f5 {[%clk 0:09:49]} 12. g3 {[%clk 0:07:52]}  Nf6 {[%clk 0:09:48]} 13. a4 {[%clk 0:07:38]}  Rg8 {[%clk 0:09:45]} 14. Kh1 {[%clk 0:07:33]}  Ne4 {[%clk 0:09:37]} 15. Nxe4 {[%clk 0:07:31]}  fxe4 {[%clk 0:09:34]} 16. c4 {[%clk 0:07:14]}  f5 {[%clk 0:09:20]} 17. c5 {[%clk 0:06:57]}  Bc7 {[%clk 0:09:20]} 18. b4 {[%clk 0:06:59]}  Kf8 {[%clk 0:09:11]} 19. Qd2 {[%clk 0:06:42]}  Be8 {[%clk 0:09:11]} 20. b5 {[%clk 0:06:39]}  Bd8 {[%clk 0:09:06]} 21. a5 {[%clk 0:05:51]}  cxb5 {[%clk 0:08:46]} 22. a6 {[%clk 0:05:50]}  Bc6 {[%clk 0:08:48]} 23. Rfb1 {[%clk 0:05:28]}  Qd7 {[%clk 0:08:21]} 24. Ng2 {[%clk 0:04:44]}  h5 {[%clk 0:08:13]} 25. Qb4 {[%clk 0:04:27]}  h4 {[%clk 0:08:05]} 26. Kg1 {[%clk 0:00:58]}  hxg3 {[%clk 0:08:00]} 27. h4 {[%clk 0:00:59]}  Rb8 {[%clk 0:07:52]} 28. Bxb5 {[%clk 0:00:51]}  Rg7 {[%clk 0:07:30]} 29. Bxc6 {[%clk 0:00:05]}  Qxc6 {[%clk 0:07:31]} 30. Qa3 {[%clk 0:00:06]}  Kg8 {[%clk 0:07:26]} 31. Kf1 {[%clk 0:00:03]}  b5 {[%clk 0:07:21]} 32. cxb6 {[%clk 0:00:03]}  Bxb6 {[%clk 0:07:21]} 33. Rc1 {[%clk 0:00:03]}  Qe8 {[%clk 0:07:22]} 0-1


[Site "Internet"]

[Event "Chessable Masters - Torneo preliminare"]
[White "Predke, Alexandr"]
[Black "Mikaelyan, Arman"]
[WhiteFideId "24107581"]
[BlackFideId "13304852"]
[WhiteElo "2582"]
[BlackElo "2456"]
[Result "0-1"]
[Round "9"]
[TimeControl "600+2"]
[Date "2023.03.13"]
[WhiteClock "0:05:30"]
[BlackClock "0:06:34"]

1. Nf3 {[%clk 0:10:01]}  d5 {[%clk 0:09:10]} 2. d3 {[%clk 0:10:01]}  Nf6 {[%clk 0:09:06]} 3. Bg5 {[%clk 0:09:57]}  c5 {[%clk 0:09:04]} 4. Nbd2 {[%clk 0:09:57]}  Nc6 {[%clk 0:09:04]} 5. g3 {[%clk 0:09:57]}  e6 {[%clk 0:09:02]} 6. Bg2 {[%clk 0:09:58]}  Be7 {[%clk 0:09:04]} 7. e4 {[%clk 0:09:55]}  O-O {[%clk 0:09:03]} 8. O-O {[%clk 0:09:47]}  h6 {[%clk 0:08:57]} 9. Bf4 {[%clk 0:09:41]}  g5 {[%clk 0:08:38]} 10. Be5 {[%clk 0:09:31]}  Nd7 {[%clk 0:08:23]} 11. d4 {[%clk 0:09:20]}  f6 {[%clk 0:07:44]} 12. exd5 {[%clk 0:07:11]}  exd5 {[%clk 0:07:46]} 13. Nh4 {[%clk 0:07:11]}  fxe5 {[%clk 0:07:37]} 14. Bxd5+ {[%clk 0:07:00]}  Kg7 {[%clk 0:07:38]} 15. Qh5 {[%clk 0:05:51]}  gxh4 {[%clk 0:07:26]} 16. Be4 {[%clk 0:05:48]}  Qe8 {[%clk 0:07:11]} 17. Qg4+ {[%clk 0:05:45]}  Kh8 {[%clk 0:06:55]} 18. d5 {[%clk 0:05:42]}  Nd4 {[%clk 0:06:45]} 19. c3 {[%clk 0:05:32]}  Nf6 {[%clk 0:06:43]} 20. Qxh4 {[%clk 0:05:33]}  Ng4 {[%clk 0:06:33]} 21. Qh3 {[%clk 0:05:30]}  Ne2+ {[%clk 0:06:34]} 0-1


[Site "Internet"]

[Event "Chessable Masters - Torneo preliminare"]
[White "Mekhitarian, Krikor Sevag"]
[Black "Ju, Wenjun"]
[WhiteFideId "2107660"]
[BlackFideId "8603006"]
[WhiteElo "2594"]
[BlackElo "2598"]
[Result "1-0"]
[Round "9"]
[TimeControl "600+2"]
[Date "2023.03.13"]
[WhiteClock "0:00:09"]
[BlackClock "0:00:17"]

1. Nf3 {[%clk 0:10:01]}  Nf6 {[%clk 0:09:59]} 2. c4 {[%clk 0:10:02]}  e6 {[%clk 0:09:54]} 3. Nc3 {[%clk 0:10:01]}  d5 {[%clk 0:09:53]} 4. e3 {[%clk 0:10:02]}  Be7 {[%clk 0:09:41]} 5. b3 {[%clk 0:10:03]}  c5 {[%clk 0:09:30]} 6. cxd5 {[%clk 0:10:03]}  Nxd5 {[%clk 0:09:31]} 7. Nxd5 {[%clk 0:10:03]}  exd5 {[%clk 0:09:00]} 8. Bb2 {[%clk 0:09:22]}  O-O {[%clk 0:08:50]} 9. Be2 {[%clk 0:09:15]}  d4 {[%clk 0:08:16]} 10. exd4 {[%clk 0:08:36]}  Bf6 {[%clk 0:07:46]} 11. Ba3 {[%clk 0:08:31]}  Nc6 {[%clk 0:07:06]} 12. Bxc5 {[%clk 0:08:10]}  Re8 {[%clk 0:07:05]} 13. O-O {[%clk 0:08:11]}  b6 {[%clk 0:07:06]} 14. Bb5 {[%clk 0:05:28]}  Bd7 {[%clk 0:06:47]} 15. Bxc6 {[%clk 0:04:42]}  Bxc6 {[%clk 0:06:49]} 16. Bb4 {[%clk 0:04:44]}  Qd5 {[%clk 0:06:32]} 17. Re1 {[%clk 0:03:50]}  g5 {[%clk 0:06:32]} 18. Rxe8+ {[%clk 0:02:47]}  Rxe8 {[%clk 0:06:34]} 19. Qf1 {[%clk 0:02:48]}  Bb5 {[%clk 0:04:58]} 20. Qd1 {[%clk 0:01:48]}  Bc6 {[%clk 0:01:04]} 21. h3 {[%clk 0:01:31]}  h5 {[%clk 0:00:58]} 22. Qf1 {[%clk 0:01:30]}  g4 {[%clk 0:00:45]} 23. hxg4 {[%clk 0:01:27]}  hxg4 {[%clk 0:00:47]} 24. Ne5 {[%clk 0:01:28]}  g3 {[%clk 0:00:47]} 25. Bc3 {[%clk 0:01:22]}  Bb5 {[%clk 0:00:33]} 26. Qe1 {[%clk 0:01:21]}  Bc6 {[%clk 0:00:28]} 27. f3 {[%clk 0:01:16]}  Bh4 {[%clk 0:00:25]} 28. Qe3 {[%clk 0:01:05]}  Re6 {[%clk 0:00:17]} 29. Qf4 {[%clk 0:01:00]}  Bf6 {[%clk 0:00:17]} 30. Qxg3+ {[%clk 0:01:00]}  Bg7 {[%clk 0:00:18]} 31. Re1 {[%clk 0:00:58]}  Be8 {[%clk 0:00:16]} 32. Qf4 {[%clk 0:00:39]}  Rf6 {[%clk 0:00:16]} 33. Qg3 {[%clk 0:00:34]}  Re6 {[%clk 0:00:16]} 34. Re3 {[%clk 0:00:36]}  Qd8 {[%clk 0:00:14]} 35. Ng4 {[%clk 0:00:34]}  Qd5 {[%clk 0:00:13]} 36. Rxe6 {[%clk 0:00:18]}  Qxe6 {[%clk 0:00:14]} 37. d5 {[%clk 0:00:18]}  Qg6 {[%clk 0:00:16]} 38. Bxg7 {[%clk 0:00:17]}  Kxg7 {[%clk 0:00:16]} 39. Qe5+ {[%clk 0:00:18]}  Kf8 {[%clk 0:00:17]} 40. Nf6 {[%clk 0:00:10]}  Bb5 {[%clk 0:00:18]} 41. d6 {[%clk 0:00:08]}  Qd3 {[%clk 0:00:19]} 42. Kh2 {[%clk 0:00:06]}  Qxd2 {[%clk 0:00:17]} 43. Nh7+ {[%clk 0:00:06]}  Kg8 {[%clk 0:00:17]} 44. Nf6+ {[%clk 0:00:08]}  Kf8 {[%clk 0:00:18]} 45. Ng4 {[%clk 0:00:09]}  Qd3 {[%clk 0:00:17]} 46. Qh8# {[%clk 0:00:09]} 1-0


[Site "Internet"]

[Event "Chessable Masters - Torneo preliminare"]
[White "Vasquez Schroeder, Rodrigo"]
[Black "Sharapov, Evgeny"]
[WhiteFideId "3400042"]
[BlackFideId "14103133"]
[WhiteElo "2589"]
[BlackElo "2337"]
[Result "1-0"]
[Round "9"]
[TimeControl "600+2"]
[Date "2023.03.13"]
[WhiteClock "0:09:26"]
[BlackClock "0:08:29"]

1. d4 {[%clk 0:10:01]}  d5 {[%clk 0:10:00]} 2. Nf3 {[%clk 0:10:02]}  c6 {[%clk 0:10:01]} 3. c4 {[%clk 0:10:03]}  Nf6 {[%clk 0:10:02]} 4. Nc3 {[%clk 0:10:04]}  g6 {[%clk 0:10:03]} 5. Qb3 {[%clk 0:10:00]}  Qb6 {[%clk 0:10:02]} 6. Bf4 {[%clk 0:09:59]}  Qxb3 {[%clk 0:09:49]} 7. axb3 {[%clk 0:10:00]}  a6 {[%clk 0:09:50]} 8. e3 {[%clk 0:09:59]}  Bg7 {[%clk 0:09:45]} 9. h3 {[%clk 0:09:59]}  O-O {[%clk 0:09:39]} 10. g4 {[%clk 0:09:54]}  e6 {[%clk 0:09:19]} 11. Bd3 {[%clk 0:09:54]}  Nbd7 {[%clk 0:09:16]} 12. c5 {[%clk 0:09:39]}  Re8 {[%clk 0:08:45]} 13. b4 {[%clk 0:09:39]}  Nf8 {[%clk 0:08:41]} 14. b5 {[%clk 0:09:36]}  cxb5 {[%clk 0:08:41]} 15. Nxb5 {[%clk 0:09:35]}  Bd7 {[%clk 0:08:34]} 16. Nc7 {[%clk 0:09:34]}  Bc6 {[%clk 0:08:31]} 17. b4 {[%clk 0:09:30]}  N6d7 {[%clk 0:08:29]} 18. b5 {[%clk 0:09:26]} 1-0


[Site "Internet"]

[Event "Chessable Masters - Torneo preliminare"]
[White "Agrest, Evgenij"]
[Black "Preotu, Razvan"]
[WhiteFideId "1705024"]
[BlackFideId "2613280"]
[WhiteElo "2576"]
[BlackElo "2532"]
[Result "1-0"]
[Round "9"]
[TimeControl "600+2"]
[Date "2023.03.13"]
[WhiteClock "0:02:29"]
[BlackClock "0:00:02"]

1. Nf3 {[%clk 0:09:44]}  c5 {[%clk 0:09:59]} 2. b3 {[%clk 0:09:41]}  Nf6 {[%clk 0:09:58]} 3. Bb2 {[%clk 0:09:42]}  Nc6 {[%clk 0:09:59]} 4. e3 {[%clk 0:09:40]}  g6 {[%clk 0:09:54]} 5. d4 {[%clk 0:09:27]}  cxd4 {[%clk 0:09:42]} 6. exd4 {[%clk 0:09:27]}  d5 {[%clk 0:09:42]} 7. Nbd2 {[%clk 0:09:26]}  Bg7 {[%clk 0:09:43]} 8. Bb5 {[%clk 0:09:25]}  Bd7 {[%clk 0:09:14]} 9. O-O {[%clk 0:08:57]}  O-O {[%clk 0:09:15]} 10. a4 {[%clk 0:08:56]}  Rc8 {[%clk 0:08:51]} 11. Re1 {[%clk 0:08:54]}  Bf5 {[%clk 0:08:48]} 12. c3 {[%clk 0:07:20]}  a6 {[%clk 0:07:14]} 13. Bf1 {[%clk 0:07:18]}  Re8 {[%clk 0:06:43]} 14. b4 {[%clk 0:07:16]}  Ne4 {[%clk 0:05:24]} 15. Nh4 {[%clk 0:06:54]}  e6 {[%clk 0:03:30]} 16. Nxf5 {[%clk 0:06:42]}  exf5 {[%clk 0:03:14]} 17. Nb3 {[%clk 0:05:59]}  Nb8 {[%clk 0:01:52]} 18. Rc1 {[%clk 0:05:13]}  Nd7 {[%clk 0:01:52]} 19. Nc5 {[%clk 0:05:01]}  Ndxc5 {[%clk 0:01:52]} 20. dxc5 {[%clk 0:04:58]}  Qg5 {[%clk 0:01:04]} 21. Rc2 {[%clk 0:04:41]}  Red8 {[%clk 0:00:42]} 22. g3 {[%clk 0:03:54]}  f4 {[%clk 0:00:38]} 23. Bg2 {[%clk 0:03:49]}  fxg3 {[%clk 0:00:39]} 24. hxg3 {[%clk 0:03:49]}  h5 {[%clk 0:00:28]} 25. Qd3 {[%clk 0:03:30]}  f5 {[%clk 0:00:25]} 26. Bc1 {[%clk 0:03:17]}  Qf6 {[%clk 0:00:23]} 27. Bb2 {[%clk 0:03:05]}  Qf7 {[%clk 0:00:22]} 28. Rd1 {[%clk 0:02:59]}  f4 {[%clk 0:00:14]} 29. Qf3 {[%clk 0:02:46]}  Rf8 {[%clk 0:00:07]} 30. gxf4 {[%clk 0:02:42]}  Qe6 {[%clk 0:00:04]} 31. c4 {[%clk 0:02:34]}  Bxb2 {[%clk 0:00:04]} 32. cxd5 {[%clk 0:02:33]}  Qf6 {[%clk 0:00:02]} 33. Qxe4 {[%clk 0:02:32]}  Rce8 {[%clk 0:00:04]} 34. Qc4 {[%clk 0:02:31]}  Kg7 {[%clk 0:00:02]} 35. d6 {[%clk 0:02:29]} 1-0


[Site "Internet"]

[Event "Chessable Masters - Torneo preliminare"]
[White "Huschenbeth, Niclas"]
[Black "Nigmatov, Ortik"]
[WhiteFideId "24604747"]
[BlackFideId "14202131"]
[WhiteElo "2566"]
[BlackElo "2344"]
[Result "0-1"]
[Round "9"]
[TimeControl "600+2"]
[Date "2023.03.13"]
[WhiteClock "0:00:03"]
[BlackClock "0:03:46"]

1. e4 {[%clk 0:10:01]}  c5 {[%clk 0:09:58]} 2. Nf3 {[%clk 0:10:01]}  e6 {[%clk 0:09:59]} 3. d4 {[%clk 0:10:02]}  cxd4 {[%clk 0:10:01]} 4. Nxd4 {[%clk 0:10:04]}  Nf6 {[%clk 0:10:02]} 5. Nc3 {[%clk 0:10:05]}  d6 {[%clk 0:10:04]} 6. g4 {[%clk 0:10:04]}  e5 {[%clk 0:10:05]} 7. Bb5+ {[%clk 0:10:03]}  Bd7 {[%clk 0:10:06]} 8. Bxd7+ {[%clk 0:10:04]}  Qxd7 {[%clk 0:10:08]} 9. Nf5 {[%clk 0:10:05]}  h5 {[%clk 0:10:09]} 10. gxh5 {[%clk 0:09:54]}  Nxh5 {[%clk 0:10:09]} 11. Bh6 {[%clk 0:09:45]}  g6 {[%clk 0:10:04]} 12. Bxf8 {[%clk 0:09:40]}  gxf5 {[%clk 0:10:05]} 13. Bxd6 {[%clk 0:09:30]}  Nc6 {[%clk 0:10:06]} 14. Bc5 {[%clk 0:08:45]}  Qxd1+ {[%clk 0:10:03]} 15. Rxd1 {[%clk 0:08:45]}  b6 {[%clk 0:10:05]} 16. Rd6 {[%clk 0:06:28]}  Rc8 {[%clk 0:10:03]} 17. Ba3 {[%clk 0:06:29]}  Nd4 {[%clk 0:10:03]} 18. Kd2 {[%clk 0:06:25]}  Rxc3 {[%clk 0:09:51]} 19. bxc3 {[%clk 0:06:16]}  Nb5 {[%clk 0:09:51]} 20. Rd5 {[%clk 0:05:30]}  Nxa3 {[%clk 0:09:43]} 21. Rxe5+ {[%clk 0:05:31]}  Kf8 {[%clk 0:09:36]} 22. Rxf5 {[%clk 0:05:24]}  Ng7 {[%clk 0:09:37]} 23. Rd5 {[%clk 0:05:18]}  Rh4 {[%clk 0:09:35]} 24. Rd8+ {[%clk 0:05:00]}  Ke7 {[%clk 0:09:36]} 25. Ra8 {[%clk 0:05:01]}  Nc4+ {[%clk 0:09:36]} 26. Kd3 {[%clk 0:04:57]}  Ne5+ {[%clk 0:09:35]} 27. Kd4 {[%clk 0:04:51]}  Ne6+ {[%clk 0:09:35]} 28. Ke3 {[%clk 0:04:45]}  Nc4+ {[%clk 0:09:24]} 29. Kd3 {[%clk 0:04:34]}  Ne5+ {[%clk 0:09:24]} 30. Ke3 {[%clk 0:04:34]}  Rh3+ {[%clk 0:09:24]} 31. Kd2 {[%clk 0:04:26]}  Nc4+ {[%clk 0:09:25]} 32. Kc1 {[%clk 0:04:18]}  a5 {[%clk 0:09:01]} 33. Rd1 {[%clk 0:03:27]}  Rxh2 {[%clk 0:08:56]} 34. Ra7+ {[%clk 0:03:28]}  Kf6 {[%clk 0:08:52]} 35. Rdd7 {[%clk 0:03:26]}  Ke5 {[%clk 0:08:41]} 36. f3 {[%clk 0:03:17]}  Ne3 {[%clk 0:07:57]} 37. Kb1 {[%clk 0:02:58]}  Rh1+ {[%clk 0:07:52]} 38. Kb2 {[%clk 0:02:59]}  Nc5 {[%clk 0:06:11]} 39. Re7+ {[%clk 0:01:35]}  Kf4 {[%clk 0:04:29]} 40. Rxf7+ {[%clk 0:01:35]}  Kg3 {[%clk 0:04:30]} 41. c4 {[%clk 0:01:27]}  Nxc4+ {[%clk 0:04:04]} 42. Kc3 {[%clk 0:01:27]}  Nd6 {[%clk 0:04:05]} 43. Rh7 {[%clk 0:01:14]}  Rd1 {[%clk 0:03:49]} 44. Rag7+ {[%clk 0:00:54]}  Kf2 {[%clk 0:03:45]} 45. e5 {[%clk 0:00:28]}  Na4+ {[%clk 0:03:45]} 46. Kb3 {[%clk 0:00:29]}  Rb1+ {[%clk 0:03:46]} 47. Kxa4 {[%clk 0:00:25]}  Nc4 {[%clk 0:03:47]} 48. Rh2+ {[%clk 0:00:09]}  Ke3 {[%clk 0:03:46]} 49. c3 {[%clk 0:00:03]}  b5# {[%clk 0:03:46]} 0-1


[Site "Internet"]

[Event "Chessable Masters - Torneo preliminare"]
[White "Larino Nieto, David"]
[Black "Matinian, Nikita"]
[WhiteFideId "2256444"]
[BlackFideId "24129100"]
[WhiteElo "2496"]
[BlackElo "2326"]
[Result "0-1"]
[Round "9"]
[TimeControl "600+2"]
[Date "2023.03.13"]
[WhiteClock "0:00:02"]
[BlackClock "0:06:05"]

1. e4 {[%clk 0:09:56]}  c5 {[%clk 0:10:01]} 2. Nc3 {[%clk 0:09:55]}  Nc6 {[%clk 0:10:01]} 3. g3 {[%clk 0:09:57]}  g6 {[%clk 0:10:02]} 4. Bg2 {[%clk 0:09:59]}  Bg7 {[%clk 0:10:03]} 5. d3 {[%clk 0:10:00]}  Rb8 {[%clk 0:10:03]} 6. f4 {[%clk 0:10:00]}  b5 {[%clk 0:10:04]} 7. Nf3 {[%clk 0:10:02]}  b4 {[%clk 0:10:05]} 8. Nd5 {[%clk 0:10:03]}  e6 {[%clk 0:10:05]} 9. Ne3 {[%clk 0:10:05]}  d5 {[%clk 0:10:05]} 10. O-O {[%clk 0:09:29]}  Nge7 {[%clk 0:10:06]} 11. e5 {[%clk 0:09:20]}  a5 {[%clk 0:10:00]} 12. a3 {[%clk 0:09:11]}  Qb6 {[%clk 0:09:46]} 13. axb4 {[%clk 0:09:09]}  axb4 {[%clk 0:09:45]} 14. Kh1 {[%clk 0:09:08]}  Bb7 {[%clk 0:09:39]} 15. c3 {[%clk 0:08:48]}  h5 {[%clk 0:09:39]} 16. d4 {[%clk 0:08:47]}  cxd4 {[%clk 0:09:26]} 17. cxd4 {[%clk 0:08:34]}  h4 {[%clk 0:09:27]} 18. gxh4 {[%clk 0:08:06]}  Kd7 {[%clk 0:09:28]} 19. b3 {[%clk 0:06:28]}  Rh5 {[%clk 0:09:27]} 20. Bb2 {[%clk 0:06:25]}  Bh6 {[%clk 0:09:10]} 21. Ng4 {[%clk 0:06:12]}  Kc7 {[%clk 0:08:58]} 22. Nf6 {[%clk 0:06:04]}  Rf5 {[%clk 0:08:59]} 23. Ng5 {[%clk 0:06:04]}  Bxg5 {[%clk 0:08:59]} 24. fxg5 {[%clk 0:05:09]}  Rh8 {[%clk 0:09:00]} 25. Qg4 {[%clk 0:04:11]}  Rxf1+ {[%clk 0:08:54]} 26. Rxf1 {[%clk 0:04:13]}  Nf5 {[%clk 0:08:55]} 27. Rxf5 {[%clk 0:04:07]}  gxf5 {[%clk 0:08:55]} 28. Qf4 {[%clk 0:04:04]}  Qb5 {[%clk 0:08:48]} 29. Bf1 {[%clk 0:03:55]}  Qa5 {[%clk 0:08:49]} 30. h5 {[%clk 0:03:50]}  Qa2 {[%clk 0:08:48]} 31. Qf2 {[%clk 0:03:42]}  Qxb3 {[%clk 0:07:36]} 32. g6 {[%clk 0:03:41]}  fxg6 {[%clk 0:07:38]} 33. hxg6 {[%clk 0:03:42]}  Qd1 {[%clk 0:07:40]} 34. g7 {[%clk 0:03:38]}  Ra8 {[%clk 0:07:41]} 35. Kg2 {[%clk 0:03:00]}  Ne7 {[%clk 0:07:15]} 36. h4 {[%clk 0:02:03]}  Ra2 {[%clk 0:07:15]} 37. h5 {[%clk 0:01:37]}  Qb3 {[%clk 0:07:13]} 38. h6 {[%clk 0:01:33]}  Rxb2 {[%clk 0:07:14]} 39. Be2 {[%clk 0:00:48]}  Ba6 {[%clk 0:07:14]} 40. h7 {[%clk 0:00:48]}  Rxe2 {[%clk 0:06:59]} 41. g8=Q {[%clk 0:00:35]}  Rxf2+ {[%clk 0:07:00]} 42. Kxf2 {[%clk 0:00:37]}  Qb2+ {[%clk 0:07:01]} 43. Kg3 {[%clk 0:00:28]}  Qc3+ {[%clk 0:07:02]} 44. Kh2 {[%clk 0:00:27]}  Qd2+ {[%clk 0:06:52]} 45. Kg3 {[%clk 0:00:14]}  Qe1+ {[%clk 0:06:45]} 46. Kh2 {[%clk 0:00:13]}  Qf2+ {[%clk 0:06:41]} 47. Kh1 {[%clk 0:00:14]}  Be2 {[%clk 0:06:30]} 48. Ne8+ {[%clk 0:00:07]}  Kb6 {[%clk 0:06:07]} 49. Qxe6+ {[%clk 0:00:07]}  Ka5 {[%clk 0:06:04]} 50. Qxd5+ {[%clk 0:00:02]}  Nxd5 {[%clk 0:06:05]} 0-1


[Site "Internet"]